[Event "Titled Tuesday Blitz November 07 Late 2023"]
[White "Kujawski, Adam"]
[Black "Cervantes Landeiro, Thalia"]
[WhiteFideId "1100920"]
[BlackFideId "3520498"]
[WhiteElo "2362"]
[BlackElo "2548"]
[Result "1-0"]
[Round "4"]
[TimeControl "180+1"]
[Date "2023.11.07"]
[WhiteClock "0:00:29"]
[BlackClock "0:00:08"]
[Board "104"]

1. e4 {[%clk 0:03:00]}  c5 {[%clk 0:02:56]} 2. Nf3 {[%clk 0:03:00]}  d6 {[%clk 0:02:56]} 3. d4 {[%clk 0:03:00]}  cxd4 {[%clk 0:02:56]} 4. Nxd4 {[%clk 0:03:01]}  Nf6 {[%clk 0:02:56]} 5. Nc3 {[%clk 0:03:01]}  a6 {[%clk 0:02:55]} 6. Bg5 {[%clk 0:03:01]}  e6 {[%clk 0:02:51]} 7. f4 {[%clk 0:03:00]}  h6 {[%clk 0:02:51]} 8. Bh4 {[%clk 0:02:56]}  Qb6 {[%clk 0:02:51]} 9. Qd3 {[%clk 0:02:56]}  Nbd7 {[%clk 0:02:49]} 10. O-O-O {[%clk 0:02:44]}  Be7 {[%clk 0:02:49]} 11. g4 {[%clk 0:02:22]}  Nc5 {[%clk 0:02:29]} 12. Qf3 {[%clk 0:02:16]}  Qc7 {[%clk 0:02:18]} 13. Bg3 {[%clk 0:01:57]}  b5 {[%clk 0:02:15]} 14. g5 {[%clk 0:01:39]}  hxg5 {[%clk 0:02:04]} 15. fxg5 {[%clk 0:01:39]}  Nfd7 {[%clk 0:01:57]} 16. g6 {[%clk 0:01:36]}  f6 {[%clk 0:01:50]} 17. e5 {[%clk 0:01:29]}  Bb7 {[%clk 0:01:49]} 18. Qg4 {[%clk 0:01:28]}  Nxe5 {[%clk 0:01:25]} 19. Bxe5 {[%clk 0:01:27]}  f5 {[%clk 0:00:53]} 20. Nxe6 {[%clk 0:01:01]}  Nxe6 {[%clk 0:00:35]} 21. Qxf5 {[%clk 0:01:00]}  Rf8 {[%clk 0:00:31]} 22. Qxe6 {[%clk 0:01:00]}  Bxh1 {[%clk 0:00:20]} 23. Nxb5 {[%clk 0:00:40]}  axb5 {[%clk 0:00:17]} 24. Bxb5+ {[%clk 0:00:40]}  Bc6 {[%clk 0:00:17]} 25. Bxd6 {[%clk 0:00:34]}  Qxd6 {[%clk 0:00:15]} 26. Bxc6+ {[%clk 0:00:31]}  Kd8 {[%clk 0:00:10]} 27. Rxd6+ {[%clk 0:00:30]}  Kc7 {[%clk 0:00:10]} 28. Qxe7+ {[%clk 0:00:30]}  Kb6 {[%clk 0:00:08]} 29. Bf3+ {[%clk 0:00:29]} 1-0


[Site "https://www.chess.com"]

[Event "Titled Tuesday Blitz November 07 Late 2023"]
[White "Jimenez Almeida, Luis David"]
[Black "Becerra, Juan David"]
[WhiteFideId "22242244"]
[BlackFideId "4404998"]
[WhiteElo "2545"]
[BlackElo "2358"]
[Result "0-1"]
[Round "4"]
[TimeControl "180+1"]
[Date "2023.11.07"]
[WhiteClock "0:00:02"]
[BlackClock "0:00:04"]
[Board "105"]

1. e4 {[%clk 0:03:00]}  e6 {[%clk 0:03:00]} 2. d4 {[%clk 0:02:59]}  d5 {[%clk 0:03:00]} 3. e5 {[%clk 0:02:59]}  c5 {[%clk 0:03:00]} 4. c3 {[%clk 0:03:00]}  Nc6 {[%clk 0:03:00]} 5. Nf3 {[%clk 0:03:00]}  Bd7 {[%clk 0:03:00]} 6. a3 {[%clk 0:02:59]}  c4 {[%clk 0:02:59]} 7. Nbd2 {[%clk 0:02:58]}  Na5 {[%clk 0:02:55]} 8. g3 {[%clk 0:02:56]}  Qb6 {[%clk 0:02:56]} 9. Rb1 {[%clk 0:02:52]}  Nb3 {[%clk 0:02:55]} 10. Nxb3 {[%clk 0:02:48]}  Ba4 {[%clk 0:02:56]} 11. Bf4 {[%clk 0:02:37]}  Ne7 {[%clk 0:02:52]} 12. Qd2 {[%clk 0:02:23]}  Bxb3 {[%clk 0:02:50]} 13. h4 {[%clk 0:02:23]}  Nc6 {[%clk 0:02:37]} 14. Bh3 {[%clk 0:02:19]}  Be7 {[%clk 0:02:26]} 15. O-O {[%clk 0:02:17]}  g6 {[%clk 0:02:24]} 16. Bg5 {[%clk 0:02:14]}  O-O-O {[%clk 0:02:19]} 17. Qf4 {[%clk 0:02:05]}  Rdf8 {[%clk 0:01:46]} 18. Bh6 {[%clk 0:02:04]}  Bc2 {[%clk 0:01:37]} 19. Rbc1 {[%clk 0:02:02]}  Bd3 {[%clk 0:01:36]} 20. Bxf8 {[%clk 0:01:57]}  Rxf8 {[%clk 0:01:23]} 21. Rfd1 {[%clk 0:01:57]}  Qxb2 {[%clk 0:01:21]} 22. Ng5 {[%clk 0:01:47]}  Bxg5 {[%clk 0:01:07]} 23. Qxg5 {[%clk 0:01:48]}  h5 {[%clk 0:00:59]} 24. Qh6 {[%clk 0:01:39]}  Qxa3 {[%clk 0:00:59]} 25. Kh2 {[%clk 0:01:22]}  Qe7 {[%clk 0:00:57]} 26. Qe3 {[%clk 0:01:04]}  a5 {[%clk 0:00:57]} 27. Rxd3 {[%clk 0:01:00]}  cxd3 {[%clk 0:00:56]} 28. c4 {[%clk 0:01:01]}  Rd8 {[%clk 0:00:50]} 29. cxd5 {[%clk 0:00:56]}  Rxd5 {[%clk 0:00:51]} 30. Bg2 {[%clk 0:00:55]}  d2 {[%clk 0:00:41]} 31. Qxd2 {[%clk 0:00:50]}  Qb4 {[%clk 0:00:27]} 32. Qxb4 {[%clk 0:00:26]}  axb4 {[%clk 0:00:27]} 33. Bxd5 {[%clk 0:00:26]}  exd5 {[%clk 0:00:28]} 34. Rc5 {[%clk 0:00:26]}  b3 {[%clk 0:00:22]} 35. Rxd5 {[%clk 0:00:24]}  Kc7 {[%clk 0:00:18]} 36. Rb5 {[%clk 0:00:20]}  Nxd4 {[%clk 0:00:18]} 37. Rb4 {[%clk 0:00:19]}  Nf3+ {[%clk 0:00:17]} 38. Kg2 {[%clk 0:00:19]}  Nxe5 {[%clk 0:00:16]} 39. Rxb3 {[%clk 0:00:19]}  Kc6 {[%clk 0:00:16]} 40. f4 {[%clk 0:00:19]}  Nd7 {[%clk 0:00:16]} 41. Kf3 {[%clk 0:00:19]}  b5 {[%clk 0:00:16]} 42. Rc3+ {[%clk 0:00:17]}  Nc5 {[%clk 0:00:17]} 43. Ke3 {[%clk 0:00:17]}  b4 {[%clk 0:00:17]} 44. Rc1 {[%clk 0:00:17]}  b3 {[%clk 0:00:17]} 45. Kd4 {[%clk 0:00:17]}  b2 {[%clk 0:00:16]} 46. Rxc5+ {[%clk 0:00:15]}  Kb6 {[%clk 0:00:16]} 47. Rc8 {[%clk 0:00:15]}  Kb7 {[%clk 0:00:15]} 48. Rf8 {[%clk 0:00:09]}  b1=Q {[%clk 0:00:15]} 49. Rxf7+ {[%clk 0:00:09]}  Kc8 {[%clk 0:00:16]} 50. Ke5 {[%clk 0:00:09]}  Qb2+ {[%clk 0:00:13]} 51. Ke6 {[%clk 0:00:09]}  Qb6+ {[%clk 0:00:12]} 52. Ke7 {[%clk 0:00:08]}  Qd4 {[%clk 0:00:10]} 53. Kf8 {[%clk 0:00:05]}  Qh8+ {[%clk 0:00:09]} 54. Ke7 {[%clk 0:00:05]}  Kc7 {[%clk 0:00:09]} 55. Rf6 {[%clk 0:00:03]}  Qg7+ {[%clk 0:00:08]} 56. Ke6 {[%clk 0:00:04]}  Qd7+ {[%clk 0:00:08]} 57. Ke5 {[%clk 0:00:04]}  Qg4 {[%clk 0:00:08]} 58. Rf7+ {[%clk 0:00:03]}  Kc6 {[%clk 0:00:07]} 59. f5 {[%clk 0:00:03]}  Qxg3+ {[%clk 0:00:07]} 60. Ke6 {[%clk 0:00:04]}  Qb3+ {[%clk 0:00:07]} 61. Kf6 {[%clk 0:00:04]}  gxf5 {[%clk 0:00:07]} 62. Rf8 {[%clk 0:00:03]}  Kd6 {[%clk 0:00:04]} 63. Kg5 {[%clk 0:00:02]}  Qg3+ {[%clk 0:00:03]} 64. Kxh5 {[%clk 0:00:02]}  Qg4+ {[%clk 0:00:03]} 65. Kh6 {[%clk 0:00:03]}  Qxh4+ {[%clk 0:00:04]} 66. Kg7 {[%clk 0:00:03]}  Qg5+ {[%clk 0:00:04]} 67. Kh8 {[%clk 0:00:03]}  Qh6+ {[%clk 0:00:04]} 68. Kg8 {[%clk 0:00:02]}  Qxf8+ {[%clk 0:00:04]} 0-1


[Site "https://www.chess.com"]

[Event "Titled Tuesday Blitz November 07 Late 2023"]
[White "Marcziter, Dmitrii"]
[Black "Santos Flores, Alberto"]
[WhiteFideId "13900765"]
[BlackFideId "3601234"]
[WhiteElo "2348"]
[BlackElo "2523"]
[Result "0-1"]
[Round "4"]
[TimeControl "180+1"]
[Date "2023.11.07"]
[WhiteClock "0:00:00"]
[BlackClock "0:00:19"]
[Board "107"]

1. d4 {[%clk 0:03:00]}  d5 {[%clk 0:02:59]} 2. c4 {[%clk 0:02:59]}  c6 {[%clk 0:02:59]} 3. Nf3 {[%clk 0:02:59]}  Nf6 {[%clk 0:03:00]} 4. Nc3 {[%clk 0:02:59]}  dxc4 {[%clk 0:03:00]} 5. a4 {[%clk 0:02:59]}  Bf5 {[%clk 0:03:00]} 6. e3 {[%clk 0:02:58]}  e6 {[%clk 0:03:00]} 7. a5 {[%clk 0:02:56]}  Bb4 {[%clk 0:02:57]} 8. Qa4 {[%clk 0:02:53]}  Qe7 {[%clk 0:02:36]} 9. Bxc4 {[%clk 0:02:51]}  Ne4 {[%clk 0:02:35]} 10. Bd2 {[%clk 0:02:49]}  Nxd2 {[%clk 0:02:30]} 11. Nxd2 {[%clk 0:02:48]}  O-O {[%clk 0:02:05]} 12. O-O {[%clk 0:02:46]}  Nd7 {[%clk 0:02:05]} 13. e4 {[%clk 0:02:43]}  Bg6 {[%clk 0:02:04]} 14. Rfe1 {[%clk 0:02:37]}  h6 {[%clk 0:02:01]} 15. Nf3 {[%clk 0:02:31]}  Bd6 {[%clk 0:01:40]} 16. Rad1 {[%clk 0:02:27]}  e5 {[%clk 0:01:39]} 17. d5 {[%clk 0:02:12]}  c5 {[%clk 0:01:39]} 18. h3 {[%clk 0:02:05]}  Nf6 {[%clk 0:01:39]} 19. Bd3 {[%clk 0:01:54]}  Nh5 {[%clk 0:01:36]} 20. Bf1 {[%clk 0:01:52]}  Nf4 {[%clk 0:01:29]} 21. g3 {[%clk 0:01:46]}  Bh5 {[%clk 0:01:22]} 22. Re3 {[%clk 0:01:45]}  Bxf3 {[%clk 0:01:17]} 23. Rxf3 {[%clk 0:01:43]}  Ng6 {[%clk 0:01:16]} 24. h4 {[%clk 0:01:42]}  b6 {[%clk 0:01:06]} 25. a6 {[%clk 0:01:40]}  Qe8 {[%clk 0:01:04]} 26. Nb5 {[%clk 0:01:37]}  Qd7 {[%clk 0:01:03]} 27. Rf5 {[%clk 0:01:15]}  Ne7 {[%clk 0:01:02]} 28. Rf3 {[%clk 0:01:13]}  g6 {[%clk 0:00:42]} 29. h5 {[%clk 0:01:08]}  Kg7 {[%clk 0:00:39]} 30. Kg2 {[%clk 0:00:51]}  f5 {[%clk 0:00:39]} 31. hxg6 {[%clk 0:00:49]}  f4 {[%clk 0:00:39]} 32. Be2 {[%clk 0:00:36]}  Nxg6 {[%clk 0:00:39]} 33. Rh1 {[%clk 0:00:29]}  Rf6 {[%clk 0:00:34]} 34. Qc2 {[%clk 0:00:23]}  Raf8 {[%clk 0:00:30]} 35. Nxd6 {[%clk 0:00:20]}  Qxd6 {[%clk 0:00:25]} 36. Rh3 {[%clk 0:00:12]}  Qd7 {[%clk 0:00:25]} 37. Rh1 {[%clk 0:00:11]}  Qf7 {[%clk 0:00:24]} 38. Bc4 {[%clk 0:00:07]}  fxg3 {[%clk 0:00:24]} 39. Rxf6 {[%clk 0:00:04]}  Qxf6 {[%clk 0:00:24]} 40. fxg3 {[%clk 0:00:01]}  Qf3+ {[%clk 0:00:24]} 41. Kh2 {[%clk 0:00:00]}  Qe3 {[%clk 0:00:19]} 0-1


[Site "https://www.chess.com"]

[Event "Titled Tuesday Blitz November 07 Late 2023"]
[White "Sreyas Payyappat"]
[Black "KorolDimitriy75"]
[WhiteFideId "46674969"]
[WhiteElo "2503"]
[BlackElo "2337"]
[Result "1-0"]
[Round "4"]
[TimeControl "180+1"]
[Date "2023.11.07"]
[WhiteClock "0:00:12"]
[BlackClock "0:00:00"]
[Board "113"]

1. e4 {[%clk 0:03:00]}  c5 {[%clk 0:02:59]} 2. Nf3 {[%clk 0:03:00]}  d6 {[%clk 0:03:00]} 3. d4 {[%clk 0:03:01]}  cxd4 {[%clk 0:03:00]} 4. Nxd4 {[%clk 0:03:01]}  Nf6 {[%clk 0:03:01]} 5. Nc3 {[%clk 0:03:02]}  g6 {[%clk 0:03:02]} 6. f4 {[%clk 0:03:02]}  Nbd7 {[%clk 0:03:01]} 7. Be3 {[%clk 0:03:02]}  Bg7 {[%clk 0:03:00]} 8. Be2 {[%clk 0:03:02]}  O-O {[%clk 0:02:59]} 9. O-O {[%clk 0:03:02]}  a6 {[%clk 0:02:31]} 10. Bf3 {[%clk 0:03:00]}  Qc7 {[%clk 0:02:27]} 11. g4 {[%clk 0:02:58]}  e5 {[%clk 0:02:19]} 12. Nb3 {[%clk 0:02:53]}  exf4 {[%clk 0:02:03]} 13. Bxf4 {[%clk 0:02:54]}  Ne5 {[%clk 0:01:56]} 14. g5 {[%clk 0:02:38]}  Ne8 {[%clk 0:01:36]} 15. Nd5 {[%clk 0:02:33]}  Qd8 {[%clk 0:01:36]} 16. Nd4 {[%clk 0:02:27]}  Nc7 {[%clk 0:01:22]} 17. c3 {[%clk 0:01:53]}  Bh3 {[%clk 0:01:06]} 18. Rf2 {[%clk 0:01:51]}  Nxd5 {[%clk 0:01:00]} 19. exd5 {[%clk 0:01:51]}  Qd7 {[%clk 0:00:51]} 20. Nc2 {[%clk 0:01:26]}  Rae8 {[%clk 0:00:30]} 21. Ne3 {[%clk 0:01:14]}  f6 {[%clk 0:00:19]} 22. Bxe5 {[%clk 0:00:13]}  Rxe5 {[%clk 0:00:18]} 23. gxf6 {[%clk 0:00:14]}  Rxf6 {[%clk 0:00:05]} 24. Bg4 {[%clk 0:00:13]}  Bxg4 {[%clk 0:00:00]} 25. Nxg4 {[%clk 0:00:12]} 1-0


[Site "https://www.chess.com"]

[Event "Titled Tuesday Blitz November 07 Late 2023"]
[White "Sepulveda Rojas, Jorge"]
[Black "Zampronha, Wladimir Camilo"]
[WhiteFideId "3404803"]
[BlackFideId "2103087"]
[WhiteElo "2490"]
[BlackElo "2311"]
[Result "1-0"]
[Round "4"]
[TimeControl "180+1"]
[Date "2023.11.07"]
[WhiteClock "0:02:40"]
[BlackClock "0:02:23"]
[Board "118"]

1. e4 {[%clk 0:02:59]}  c5 {[%clk 0:02:59]} 2. Nf3 {[%clk 0:02:58]}  e6 {[%clk 0:02:59]} 3. d4 {[%clk 0:02:58]}  cxd4 {[%clk 0:03:00]} 4. Nxd4 {[%clk 0:02:58]}  Nc6 {[%clk 0:02:59]} 5. Nb3 {[%clk 0:02:58]}  Nf6 {[%clk 0:02:57]} 6. Nc3 {[%clk 0:02:58]}  Bb4 {[%clk 0:02:53]} 7. Bd3 {[%clk 0:02:58]}  d5 {[%clk 0:02:50]} 8. exd5 {[%clk 0:02:57]}  exd5 {[%clk 0:02:51]} 9. O-O {[%clk 0:02:54]}  O-O {[%clk 0:02:46]} 10. Bg5 {[%clk 0:02:53]}  Be6 {[%clk 0:02:46]} 11. Ne2 {[%clk 0:02:50]}  Be7 {[%clk 0:02:41]} 12. Ned4 {[%clk 0:02:49]}  Qd7 {[%clk 0:02:32]} 13. Re1 {[%clk 0:02:44]}  Nxd4 {[%clk 0:02:32]} 14. Nxd4 {[%clk 0:02:43]}  Rfe8 {[%clk 0:02:32]} 15. Bb5 {[%clk 0:02:42]}  Qc7 {[%clk 0:02:28]} 16. Bxe8 {[%clk 0:02:40]}  Rxe8 {[%clk 0:02:29]} 17. Nxe6 {[%clk 0:02:39]}  fxe6 {[%clk 0:02:23]} 18. Rxe6 {[%clk 0:02:40]} 1-0


[Site "https://www.chess.com"]

[Event "Titled Tuesday Blitz November 07 Late 2023"]
[White "Osmonbekov, Talaibek"]
[Black "Khater, Sherif"]
[WhiteFideId "2017253"]
[BlackFideId "2034280"]
[WhiteElo "2304"]
[BlackElo "2486"]
[Result "0-1"]
[Round "4"]
[TimeControl "180+1"]
[Date "2023.11.07"]
[WhiteClock "0:00:00"]
[BlackClock "0:00:31"]
[Board "120"]

1. d4 {[%clk 0:03:00]}  d5 {[%clk 0:02:59]} 2. Nc3 {[%clk 0:03:01]}  g6 {[%clk 0:02:58]} 3. Bf4 {[%clk 0:03:00]}  c6 {[%clk 0:02:58]} 4. e3 {[%clk 0:03:00]}  Bg7 {[%clk 0:02:59]} 5. Nf3 {[%clk 0:03:00]}  Nf6 {[%clk 0:02:58]} 6. Ne5 {[%clk 0:03:00]}  Nbd7 {[%clk 0:02:57]} 7. h4 {[%clk 0:02:59]}  h5 {[%clk 0:02:57]} 8. f3 {[%clk 0:02:59]}  Qa5 {[%clk 0:02:56]} 9. Qd2 {[%clk 0:02:57]}  Nxe5 {[%clk 0:02:50]} 10. Bxe5 {[%clk 0:02:36]}  Bf5 {[%clk 0:02:40]} 11. O-O-O {[%clk 0:02:20]}  O-O-O {[%clk 0:02:34]} 12. Kb1 {[%clk 0:02:19]}  Ne8 {[%clk 0:02:30]} 13. Bxg7 {[%clk 0:02:10]}  Nxg7 {[%clk 0:02:30]} 14. e4 {[%clk 0:02:09]}  dxe4 {[%clk 0:02:29]} 15. fxe4 {[%clk 0:02:10]}  Bg4 {[%clk 0:02:29]} 16. Be2 {[%clk 0:02:08]}  Ne6 {[%clk 0:02:22]} 17. d5 {[%clk 0:01:48]}  Nc7 {[%clk 0:02:18]} 18. Bxg4+ {[%clk 0:01:40]}  hxg4 {[%clk 0:02:19]} 19. Qe2 {[%clk 0:01:35]}  cxd5 {[%clk 0:02:13]} 20. exd5 {[%clk 0:01:13]}  Qb4 {[%clk 0:01:54]} 21. a3 {[%clk 0:01:07]}  Qd6 {[%clk 0:01:53]} 22. Qxg4+ {[%clk 0:01:06]}  Kb8 {[%clk 0:01:53]} 23. Qf3 {[%clk 0:00:57]}  Rh7 {[%clk 0:01:44]} 24. Ne4 {[%clk 0:00:55]}  Qb6 {[%clk 0:01:18]} 25. Ng5 {[%clk 0:00:29]}  Rg7 {[%clk 0:01:18]} 26. Qc3 {[%clk 0:00:27]}  f6 {[%clk 0:01:07]} 27. Ne6 {[%clk 0:00:24]}  Nxe6 {[%clk 0:01:05]} 28. dxe6 {[%clk 0:00:25]}  Rc8 {[%clk 0:00:58]} 29. Qg3+ {[%clk 0:00:23]}  Ka8 {[%clk 0:00:58]} 30. Qg4 {[%clk 0:00:08]}  Qc6 {[%clk 0:00:54]} 31. Qe2 {[%clk 0:00:07]}  Rgg8 {[%clk 0:00:49]} 32. g4 {[%clk 0:00:08]}  a6 {[%clk 0:00:49]} 33. h5 {[%clk 0:00:08]}  gxh5 {[%clk 0:00:49]} 34. gxh5 {[%clk 0:00:08]}  Rh8 {[%clk 0:00:49]} 35. h6 {[%clk 0:00:08]}  Rcg8 {[%clk 0:00:46]} 36. Rh2 {[%clk 0:00:04]}  Rg5 {[%clk 0:00:45]} 37. Rd7 {[%clk 0:00:03]}  Re5 {[%clk 0:00:44]} 38. Qd2 {[%clk 0:00:02]}  Rxe6 {[%clk 0:00:40]} 39. Rd8+ {[%clk 0:00:02]}  Rxd8 {[%clk 0:00:40]} 40. Qxd8+ {[%clk 0:00:03]}  Ka7 {[%clk 0:00:41]} 41. h7 {[%clk 0:00:03]}  Re1+ {[%clk 0:00:30]} 42. Ka2 {[%clk 0:00:00]}  Qc4+ {[%clk 0:00:31]} 0-1


[Site "https://www.chess.com"]

[Event "Titled Tuesday Blitz November 07 Late 2023"]
[White "Willy, Stephen"]
[Black "Minina, Veronika"]
[WhiteFideId "30981468"]
[BlackFideId "4174780"]
[WhiteElo "2478"]
[BlackElo "2293"]
[Result "1-0"]
[Round "4"]
[TimeControl "180+1"]
[Date "2023.11.07"]
[WhiteClock "0:01:22"]
[BlackClock "0:00:00"]
[Board "122"]

1. f4 {[%clk 0:03:00]}  d5 {[%clk 0:02:45]} 2. e3 {[%clk 0:03:00]}  Nc6 {[%clk 0:02:41]} 3. Nf3 {[%clk 0:02:58]}  Bg4 {[%clk 0:02:39]} 4. Bb5 {[%clk 0:02:56]}  e5 {[%clk 0:02:27]} 5. fxe5 {[%clk 0:02:45]}  a6 {[%clk 0:02:26]} 6. Bxc6+ {[%clk 0:02:43]}  bxc6 {[%clk 0:02:27]} 7. O-O {[%clk 0:02:43]}  Be7 {[%clk 0:01:54]} 8. Qe1 {[%clk 0:02:41]}  Nh6 {[%clk 0:01:49]} 9. Qg3 {[%clk 0:02:32]}  O-O {[%clk 0:01:48]} 10. d4 {[%clk 0:02:25]}  c5 {[%clk 0:01:47]} 11. c3 {[%clk 0:02:19]}  c6 {[%clk 0:01:45]} 12. e4 {[%clk 0:02:11]}  dxe4 {[%clk 0:01:43]} 13. Bxh6 {[%clk 0:02:10]}  f5 {[%clk 0:00:56]} 14. exf6 {[%clk 0:02:01]}  Rxf6 {[%clk 0:00:52]} 15. Qxg4 {[%clk 0:01:58]}  Rxh6 {[%clk 0:00:51]} 16. Qxe4 {[%clk 0:01:57]}  cxd4 {[%clk 0:00:49]} 17. Nxd4 {[%clk 0:01:46]}  Bc5 {[%clk 0:00:40]} 18. Na3 {[%clk 0:01:37]}  Qc7 {[%clk 0:00:22]} 19. g3 {[%clk 0:01:26]}  Rd8 {[%clk 0:00:19]} 20. Rae1 {[%clk 0:01:22]}  Rg6 {[%clk 0:00:00]} 21. Qe8+ {[%clk 0:01:22]} 1-0


[Site "https://www.chess.com"]

[Event "Titled Tuesday Blitz November 07 Late 2023"]
[White "Belanoff, Ted"]
[Black "Koc, Przemyslaw"]
[WhiteFideId "2070588"]
[BlackFideId "1109081"]
[WhiteElo "2290"]
[BlackElo "2473"]
[Result "0-1"]
[Round "4"]
[TimeControl "180+1"]
[Date "2023.11.07"]
[WhiteClock "0:01:38"]
[BlackClock "0:01:55"]
[Board "123"]

1. b4 {[%clk 0:03:00]}  c5 {[%clk 0:02:56]} 2. bxc5 {[%clk 0:02:58]}  e5 {[%clk 0:02:55]} 3. Bb2 {[%clk 0:02:58]}  Nc6 {[%clk 0:02:55]} 4. Nf3 {[%clk 0:02:57]}  Bxc5 {[%clk 0:02:51]} 5. Nxe5 {[%clk 0:02:55]}  Bxf2+ {[%clk 0:02:44]} 6. Kxf2 {[%clk 0:02:53]}  Qb6+ {[%clk 0:02:43]} 7. Ke1 {[%clk 0:02:48]}  Qxb2 {[%clk 0:02:43]} 8. Nc3 {[%clk 0:02:29]}  Nxe5 {[%clk 0:02:42]} 9. Rb1 {[%clk 0:02:28]}  Qa3 {[%clk 0:02:40]} 10. Nb5 {[%clk 0:02:25]}  Qa5 {[%clk 0:02:40]} 11. Nd6+ {[%clk 0:02:21]}  Kf8 {[%clk 0:02:40]} 12. Rb5 {[%clk 0:02:11]}  Qc7 {[%clk 0:02:29]} 13. Ne4 {[%clk 0:02:11]}  d6 {[%clk 0:02:18]} 14. g3 {[%clk 0:02:07]}  Bd7 {[%clk 0:02:17]} 15. Rb3 {[%clk 0:02:06]}  Bc6 {[%clk 0:02:13]} 16. Bg2 {[%clk 0:02:06]}  Nf6 {[%clk 0:02:13]} 17. Re3 {[%clk 0:01:47]}  Neg4 {[%clk 0:01:59]} 18. Nxf6 {[%clk 0:01:42]}  Nxe3 {[%clk 0:01:58]} 19. dxe3 {[%clk 0:01:38]}  Bxg2 {[%clk 0:01:55]} 0-1


[Site "https://www.chess.com"]

[Event "Titled Tuesday Blitz November 07 Late 2023"]
[White "Baches Garcia, Guillermo"]
[Black "Harish, Neeraj"]
[WhiteFideId "2209764"]
[BlackFideId "30958130"]
[WhiteElo "2473"]
[BlackElo "2269"]
[Result "1/2-1/2"]
[Round "4"]
[TimeControl "180+1"]
[Date "2023.11.07"]
[WhiteClock "0:02:05"]
[BlackClock "0:00:54"]
[Board "124"]

1. d4 {[%clk 0:03:00]}  d5 {[%clk 0:02:58]} 2. Nf3 {[%clk 0:03:01]}  Nf6 {[%clk 0:02:56]} 3. Bg5 {[%clk 0:03:01]}  Ne4 {[%clk 0:02:53]} 4. Bf4 {[%clk 0:03:01]}  c5 {[%clk 0:02:52]} 5. dxc5 {[%clk 0:03:02]}  Nc6 {[%clk 0:02:51]} 6. Nbd2 {[%clk 0:03:01]}  Nxc5 {[%clk 0:02:50]} 7. e3 {[%clk 0:03:01]}  f6 {[%clk 0:02:45]} 8. Be2 {[%clk 0:03:00]}  e5 {[%clk 0:02:45]} 9. Bg3 {[%clk 0:03:00]}  Be6 {[%clk 0:02:44]} 10. O-O {[%clk 0:02:56]}  Be7 {[%clk 0:02:43]} 11. Nb3 {[%clk 0:02:49]}  Nxb3 {[%clk 0:02:39]} 12. axb3 {[%clk 0:02:49]}  O-O {[%clk 0:02:39]} 13. c3 {[%clk 0:02:47]}  Qb6 {[%clk 0:01:58]} 14. b4 {[%clk 0:02:44]}  Rfd8 {[%clk 0:01:55]} 15. Qa4 {[%clk 0:02:24]}  a6 {[%clk 0:01:34]} 16. b5 {[%clk 0:02:05]}  axb5 {[%clk 0:00:54]} 17. Qxb5 {[%clk 0:02:05]} 1/2-1/2


[Site "https://www.chess.com"]

[Event "Titled Tuesday Blitz November 07 Late 2023"]
[White "Kovacsy, Barnabas"]
[Black "Bullen, Alex"]
[WhiteFideId "769290"]
[BlackFideId "1801627"]
[WhiteElo "2465"]
[BlackElo "2228"]
[Result "1-0"]
[Round "4"]
[TimeControl "180+1"]
[Date "2023.11.07"]
[WhiteClock "0:01:22"]
[BlackClock "0:00:50"]
[Board "126"]

1. e4 {[%clk 0:03:00]}  c5 {[%clk 0:02:59]} 2. Nf3 {[%clk 0:03:00]}  e6 {[%clk 0:02:59]} 3. d4 {[%clk 0:02:59]}  cxd4 {[%clk 0:03:00]} 4. Nxd4 {[%clk 0:03:00]}  Nf6 {[%clk 0:03:01]} 5. Nc3 {[%clk 0:03:00]}  Nc6 {[%clk 0:03:01]} 6. Ndb5 {[%clk 0:02:56]}  Bb4 {[%clk 0:03:00]} 7. a3 {[%clk 0:02:54]}  Bxc3+ {[%clk 0:03:00]} 8. Nxc3 {[%clk 0:02:55]}  d5 {[%clk 0:03:00]} 9. exd5 {[%clk 0:02:50]}  Nxd5 {[%clk 0:03:01]} 10. Nxd5 {[%clk 0:02:49]}  Qxd5 {[%clk 0:03:01]} 11. Qxd5 {[%clk 0:02:49]}  exd5 {[%clk 0:03:02]} 12. Bd3 {[%clk 0:02:48]}  Bg4 {[%clk 0:02:59]} 13. O-O {[%clk 0:02:47]}  O-O {[%clk 0:02:58]} 14. Re1 {[%clk 0:02:47]}  Rfe8 {[%clk 0:02:57]} 15. Bf4 {[%clk 0:02:48]}  Bh5 {[%clk 0:02:54]} 16. c3 {[%clk 0:02:16]}  Bg6 {[%clk 0:02:54]} 17. Bb5 {[%clk 0:02:15]}  a6 {[%clk 0:02:50]} 18. Ba4 {[%clk 0:02:10]}  b5 {[%clk 0:02:47]} 19. Bb3 {[%clk 0:02:11]}  Red8 {[%clk 0:02:06]} 20. Rad1 {[%clk 0:01:41]}  d4 {[%clk 0:01:56]} 21. Bg5 {[%clk 0:01:41]}  Rd7 {[%clk 0:01:35]} 22. cxd4 {[%clk 0:01:29]}  Nxd4 {[%clk 0:01:31]} 23. Be3 {[%clk 0:01:25]}  Rad8 {[%clk 0:01:01]} 24. Rxd4 {[%clk 0:01:22]}  Rxd4 {[%clk 0:00:59]} 25. Bxd4 {[%clk 0:01:23]}  h6 {[%clk 0:00:50]} 26. Bc3 {[%clk 0:01:22]} 1-0


[Site "https://www.chess.com"]

[Event "Titled Tuesday Blitz November 07 Late 2023"]
[White "hristos03"]
[Black "Vila Dupla, Aurelio"]
[BlackFideId "2203383"]
[WhiteElo "2430"]
[BlackElo "2180"]
[Result "0-1"]
[Round "4"]
[TimeControl "180+1"]
[Date "2023.11.07"]
[WhiteClock "0:00:03"]
[BlackClock "0:00:11"]
[Board "133"]

1. e4 {[%clk 0:03:00]}  c5 {[%clk 0:02:59]} 2. Nf3 {[%clk 0:03:00]}  d6 {[%clk 0:02:59]} 3. d4 {[%clk 0:03:00]}  cxd4 {[%clk 0:02:58]} 4. Nxd4 {[%clk 0:03:00]}  Nf6 {[%clk 0:02:57]} 5. Nc3 {[%clk 0:03:00]}  g6 {[%clk 0:02:57]} 6. Be3 {[%clk 0:02:57]}  Bg7 {[%clk 0:02:57]} 7. f3 {[%clk 0:02:56]}  O-O {[%clk 0:02:57]} 8. Qd2 {[%clk 0:02:54]}  Nc6 {[%clk 0:02:57]} 9. O-O-O {[%clk 0:02:54]}  Nxd4 {[%clk 0:02:57]} 10. Bxd4 {[%clk 0:02:54]}  Be6 {[%clk 0:02:58]} 11. h4 {[%clk 0:02:45]}  Qa5 {[%clk 0:02:57]} 12. Kb1 {[%clk 0:02:40]}  Rfc8 {[%clk 0:02:56]} 13. a3 {[%clk 0:02:27]}  Bc4 {[%clk 0:02:54]} 14. g4 {[%clk 0:02:15]}  Bxf1 {[%clk 0:02:53]} 15. Rhxf1 {[%clk 0:02:10]}  Rc4 {[%clk 0:02:53]} 16. g5 {[%clk 0:01:38]}  Nxe4 {[%clk 0:02:38]} 17. fxe4 {[%clk 0:01:13]}  Rxd4 {[%clk 0:02:37]} 18. Qf4 {[%clk 0:01:08]}  Rxd1+ {[%clk 0:02:28]} 19. Nxd1 {[%clk 0:01:09]}  Rf8 {[%clk 0:02:20]} 20. Qf3 {[%clk 0:00:55]}  Qe5 {[%clk 0:02:13]} 21. c3 {[%clk 0:00:47]}  f6 {[%clk 0:02:09]} 22. Qg4 {[%clk 0:00:25]}  f5 {[%clk 0:01:51]} 23. exf5 {[%clk 0:00:25]}  gxf5 {[%clk 0:01:28]} 24. Qc4+ {[%clk 0:00:21]}  d5 {[%clk 0:01:22]} 25. Qb5 {[%clk 0:00:17]}  f4 {[%clk 0:01:08]} 26. Nf2 {[%clk 0:00:14]}  f3 {[%clk 0:01:04]} 27. Ka2 {[%clk 0:00:10]}  e6 {[%clk 0:00:55]} 28. Qxb7 {[%clk 0:00:03]}  Qe2 {[%clk 0:00:54]} 29. Qd7 {[%clk 0:00:03]}  Bxc3 {[%clk 0:00:35]} 30. Rb1 {[%clk 0:00:02]}  Qxf2 {[%clk 0:00:22]} 31. Qxe6+ {[%clk 0:00:03]}  Kh8 {[%clk 0:00:22]} 32. Qc6 {[%clk 0:00:03]}  Bg7 {[%clk 0:00:19]} 33. h5 {[%clk 0:00:02]}  Qd4 {[%clk 0:00:17]} 34. h6 {[%clk 0:00:02]}  Be5 {[%clk 0:00:17]} 35. Qe6 {[%clk 0:00:01]}  f2 {[%clk 0:00:16]} 36. g6 {[%clk 0:00:01]}  hxg6 {[%clk 0:00:12]} 37. Qxg6 {[%clk 0:00:02]}  f1=Q {[%clk 0:00:11]} 38. Rxf1 {[%clk 0:00:03]}  Qxb2# {[%clk 0:00:11]} 0-1


[Site "https://www.chess.com"]